[Event "Titled Tuesday Blitz July 18 Early 2023"]
[White "Trifan, Andrei Ioan"]
[Black "Itgelt, Khuyagtsogt"]
[WhiteFideId "12967068"]
[BlackFideId "4902912"]
[WhiteElo "2542"]
[BlackElo "2680"]
[Result "0-1"]
[Round "6"]
[TimeControl "180+2"]
[Date "2023.07.18"]
[WhiteClock "0:00:27"]
[BlackClock "0:01:35"]
[Board "64"]

1. e4 {[%clk 0:02:59]}  e6 {[%clk 0:03:00]} 2. d4 {[%clk 0:02:57]}  d5 {[%clk 0:03:00]} 3. exd5 {[%clk 0:02:56]}  exd5 {[%clk 0:03:01]} 4. Nf3 {[%clk 0:02:56]}  Nc6 {[%clk 0:03:01]} 5. Bd3 {[%clk 0:02:55]}  Bd6 {[%clk 0:03:02]} 6. O-O {[%clk 0:02:52]}  Nge7 {[%clk 0:03:01]} 7. c3 {[%clk 0:02:51]}  Bg4 {[%clk 0:03:01]} 8. h3 {[%clk 0:02:49]}  Bh5 {[%clk 0:03:01]} 9. Nbd2 {[%clk 0:02:49]}  Qd7 {[%clk 0:03:01]} 10. Qb3 {[%clk 0:02:40]}  O-O-O {[%clk 0:02:42]} 11. a4 {[%clk 0:02:38]}  g5 {[%clk 0:02:19]} 12. Nh2 {[%clk 0:01:19]}  g4 {[%clk 0:01:59]} 13. hxg4 {[%clk 0:01:17]}  Bxh2+ {[%clk 0:01:44]} 14. Kxh2 {[%clk 0:01:18]}  Qxg4 {[%clk 0:01:44]} 15. Nf3 {[%clk 0:01:01]}  Rdg8 {[%clk 0:01:38]} 16. Rg1 {[%clk 0:00:27]}  Bg6 {[%clk 0:01:35]} 0-1


[Site "https://www.chess.com"]

[Event "Titled Tuesday Blitz July 18 Early 2023"]
[White "Nouri, Alekhine"]
[Black "Tikhonov, Viacheslav"]
[WhiteFideId "5216184"]
[BlackFideId "44196407"]
[WhiteElo "2678"]
[BlackElo "2537"]
[Result "1-0"]
[Round "6"]
[TimeControl "180+2"]
[Date "2023.07.18"]
[WhiteClock "0:02:21"]
[BlackClock "0:00:58"]
[Board "65"]

1. e4 {[%clk 0:02:59]}  c5 {[%clk 0:03:00]} 2. Nc3 {[%clk 0:02:58]}  Nc6 {[%clk 0:03:00]} 3. Bb5 {[%clk 0:02:59]}  Nd4 {[%clk 0:02:59]} 4. Nf3 {[%clk 0:02:59]}  e6 {[%clk 0:03:00]} 5. O-O {[%clk 0:02:59]}  a6 {[%clk 0:02:56]} 6. Bd3 {[%clk 0:02:59]}  Nc6 {[%clk 0:02:55]} 7. b3 {[%clk 0:02:58]}  g5 {[%clk 0:02:54]} 8. Bb2 {[%clk 0:02:57]}  g4 {[%clk 0:02:51]} 9. Ne1 {[%clk 0:02:58]}  Bg7 {[%clk 0:02:47]} 10. Qxg4 {[%clk 0:02:57]}  Bd4 {[%clk 0:02:30]} 11. Nf3 {[%clk 0:02:56]}  Ne5 {[%clk 0:02:19]} 12. Nxe5 {[%clk 0:02:56]}  Bxe5 {[%clk 0:02:20]} 13. f4 {[%clk 0:02:57]}  Bd4+ {[%clk 0:02:17]} 14. Kh1 {[%clk 0:02:57]}  h5 {[%clk 0:02:15]} 15. Qf3 {[%clk 0:02:57]}  Nf6 {[%clk 0:02:05]} 16. Na4 {[%clk 0:02:51]}  Ng4 {[%clk 0:01:52]} 17. c3 {[%clk 0:02:47]}  Qh4 {[%clk 0:01:44]} 18. h3 {[%clk 0:02:37]}  Bg7 {[%clk 0:01:22]} 19. Nb6 {[%clk 0:02:30]}  Rb8 {[%clk 0:01:17]} 20. e5 {[%clk 0:02:30]}  Rg8 {[%clk 0:01:12]} 21. c4 {[%clk 0:02:27]}  d6 {[%clk 0:01:07]} 22. Be4 {[%clk 0:02:22]}  dxe5 {[%clk 0:01:06]} 23. fxe5 {[%clk 0:02:21]}  Nxe5 {[%clk 0:01:00]} 24. Bxe5 {[%clk 0:02:21]}  Bxe5 {[%clk 0:00:58]} 25. Qxf7+ {[%clk 0:02:21]} 1-0


[Site "https://www.chess.com"]

[Event "Titled Tuesday Blitz July 18 Early 2023"]
[White "Rychagov, Andrey"]
[Black "Ortega Amarelle, Mariano"]
[WhiteFideId "4119932"]
[BlackFideId "3504301"]
[WhiteElo "2677"]
[BlackElo "2534"]
[Result "1-0"]
[Round "6"]
[TimeControl "180+2"]
[Date "2023.07.18"]
[WhiteClock "0:00:06"]
[BlackClock "0:00:00"]
[Board "66"]

1. d4 {[%clk 0:03:00]}  Nf6 {[%clk 0:02:56]} 2. c4 {[%clk 0:03:00]}  e6 {[%clk 0:02:55]} 3. Nf3 {[%clk 0:03:00]}  b6 {[%clk 0:02:53]} 4. a3 {[%clk 0:03:00]}  d5 {[%clk 0:02:51]} 5. Nc3 {[%clk 0:02:58]}  Bb7 {[%clk 0:02:51]} 6. cxd5 {[%clk 0:02:57]}  Nxd5 {[%clk 0:02:52]} 7. e3 {[%clk 0:02:58]}  Be7 {[%clk 0:02:49]} 8. Bb5+ {[%clk 0:02:57]}  c6 {[%clk 0:02:46]} 9. Bd3 {[%clk 0:02:57]}  O-O {[%clk 0:02:43]} 10. Qc2 {[%clk 0:02:57]}  h6 {[%clk 0:02:31]} 11. e4 {[%clk 0:02:55]}  Nxc3 {[%clk 0:02:31]} 12. bxc3 {[%clk 0:02:55]}  c5 {[%clk 0:02:31]} 13. O-O {[%clk 0:02:55]}  Ba6 {[%clk 0:02:30]} 14. Rd1 {[%clk 0:02:49]}  Qc7 {[%clk 0:02:27]} 15. d5 {[%clk 0:02:47]}  exd5 {[%clk 0:02:22]} 16. Bxa6 {[%clk 0:02:42]}  Nxa6 {[%clk 0:02:09]} 17. exd5 {[%clk 0:02:42]}  c4 {[%clk 0:02:04]} 18. Nd4 {[%clk 0:02:33]}  Nc5 {[%clk 0:01:54]} 19. Nf5 {[%clk 0:02:24]}  Nd3 {[%clk 0:01:42]} 20. Qe2 {[%clk 0:02:18]}  Bf6 {[%clk 0:01:35]} 21. d6 {[%clk 0:02:02]}  Qc5 {[%clk 0:01:30]} 22. g4 {[%clk 0:01:32]}  Rfe8 {[%clk 0:01:15]} 23. Be3 {[%clk 0:01:32]}  Qd5 {[%clk 0:01:07]} 24. Qd2 {[%clk 0:01:21]}  Qf3 {[%clk 0:01:01]} 25. a4 {[%clk 0:00:45]}  Qxg4+ {[%clk 0:00:58]} 26. Ng3 {[%clk 0:00:46]}  h5 {[%clk 0:00:53]} 27. Qe2 {[%clk 0:00:46]}  Bxc3 {[%clk 0:00:47]} 28. Qxg4 {[%clk 0:00:45]}  hxg4 {[%clk 0:00:45]} 29. Ra2 {[%clk 0:00:45]}  Be5 {[%clk 0:00:41]} 30. Rc2 {[%clk 0:00:45]}  Bxg3 {[%clk 0:00:32]} 31. hxg3 {[%clk 0:00:44]}  Red8 {[%clk 0:00:27]} 32. Rxc4 {[%clk 0:00:41]}  Rxd6 {[%clk 0:00:25]} 33. Rxg4 {[%clk 0:00:40]}  Rad8 {[%clk 0:00:22]} 34. Rc4 {[%clk 0:00:30]}  Ne5 {[%clk 0:00:19]} 35. Rxd6 {[%clk 0:00:28]}  Rxd6 {[%clk 0:00:20]} 36. Rc8+ {[%clk 0:00:28]}  Kh7 {[%clk 0:00:20]} 37. Bf4 {[%clk 0:00:29]}  Rd1+ {[%clk 0:00:18]} 38. Kg2 {[%clk 0:00:28]}  Ng6 {[%clk 0:00:17]} 39. Be3 {[%clk 0:00:25]}  Rd7 {[%clk 0:00:16]} 40. g4 {[%clk 0:00:18]}  Ne5 {[%clk 0:00:16]} 41. Kg3 {[%clk 0:00:18]}  f6 {[%clk 0:00:16]} 42. Bf4 {[%clk 0:00:16]}  Nd3 {[%clk 0:00:15]} 43. Bb8 {[%clk 0:00:15]}  Nc5 {[%clk 0:00:14]} 44. a5 {[%clk 0:00:15]}  Na6 {[%clk 0:00:11]} 45. axb6 {[%clk 0:00:11]}  axb6 {[%clk 0:00:12]} 46. Bf4 {[%clk 0:00:11]}  Rb7 {[%clk 0:00:12]} 47. Ra8 {[%clk 0:00:11]}  Nc5 {[%clk 0:00:12]} 48. Be3 {[%clk 0:00:10]}  Ne6 {[%clk 0:00:11]} 49. Re8 {[%clk 0:00:10]}  Ng5 {[%clk 0:00:08]} 50. f4 {[%clk 0:00:09]}  Nf7 {[%clk 0:00:08]} 51. g5 {[%clk 0:00:09]}  fxg5 {[%clk 0:00:08]} 52. fxg5 {[%clk 0:00:10]}  Kg6 {[%clk 0:00:08]} 53. Kg4 {[%clk 0:00:08]}  Kh7 {[%clk 0:00:03]} 54. Bd4 {[%clk 0:00:08]}  b5 {[%clk 0:00:02]} 55. Kf5 {[%clk 0:00:06]}  g6+ {[%clk 0:00:00]} 56. Ke6 {[%clk 0:00:06]} 1-0


[Site "https://www.chess.com"]

[Event "Titled Tuesday Blitz July 18 Early 2023"]
[White "FoxOnTheRun97"]
[Black "Haug, Havard"]
[BlackFideId "1547887"]
[WhiteElo "2530"]
[BlackElo "2655"]
[Result "1/2-1/2"]
[Round "6"]
[TimeControl "180+2"]
[Date "2023.07.18"]
[WhiteClock "0:00:10"]
[BlackClock "0:00:04"]
[Board "68"]

1. d4 {[%clk 0:03:00]}  d5 {[%clk 0:02:58]} 2. c4 {[%clk 0:03:00]}  e6 {[%clk 0:02:56]} 3. Nc3 {[%clk 0:03:00]}  c5 {[%clk 0:02:56]} 4. cxd5 {[%clk 0:03:00]}  cxd4 {[%clk 0:02:54]} 5. Qa4+ {[%clk 0:02:59]}  Bd7 {[%clk 0:02:54]} 6. Qxd4 {[%clk 0:03:00]}  exd5 {[%clk 0:02:54]} 7. Qxd5 {[%clk 0:02:58]}  Nf6 {[%clk 0:02:54]} 8. Qd1 {[%clk 0:02:57]}  Bc5 {[%clk 0:02:52]} 9. e3 {[%clk 0:02:57]}  O-O {[%clk 0:02:52]} 10. Nf3 {[%clk 0:02:52]}  Nc6 {[%clk 0:02:51]} 11. a3 {[%clk 0:02:52]}  Qe7 {[%clk 0:02:49]} 12. Be2 {[%clk 0:02:49]}  Rfd8 {[%clk 0:02:46]} 13. Qc2 {[%clk 0:02:35]}  g6 {[%clk 0:02:41]} 14. O-O {[%clk 0:02:30]}  Bf5 {[%clk 0:02:40]} 15. Qb3 {[%clk 0:02:26]}  Na5 {[%clk 0:02:39]} 16. Qa4 {[%clk 0:02:24]}  Nc6 {[%clk 0:02:23]} 17. b4 {[%clk 0:02:18]}  Bd6 {[%clk 0:02:19]} 18. Nb5 {[%clk 0:02:15]}  Be5 {[%clk 0:02:16]} 19. Nxe5 {[%clk 0:02:00]}  Qxe5 {[%clk 0:02:16]} 20. Ra2 {[%clk 0:01:51]}  a6 {[%clk 0:02:10]} 21. Bb2 {[%clk 0:01:35]}  axb5 {[%clk 0:02:00]} 22. Bxe5 {[%clk 0:01:08]}  bxa4 {[%clk 0:01:49]} 23. Bxf6 {[%clk 0:01:09]}  Rdc8 {[%clk 0:01:44]} 24. g4 {[%clk 0:01:00]}  Be6 {[%clk 0:01:43]} 25. Rc2 {[%clk 0:00:59]}  Na7 {[%clk 0:01:36]} 26. Rfc1 {[%clk 0:00:55]}  Bb3 {[%clk 0:01:35]} 27. Rc7 {[%clk 0:00:52]}  Bd5 {[%clk 0:01:24]} 28. Bd4 {[%clk 0:00:44]}  Nc6 {[%clk 0:01:19]} 29. Rxc8+ {[%clk 0:00:39]}  Rxc8 {[%clk 0:01:18]} 30. b5 {[%clk 0:00:36]}  Ne7 {[%clk 0:01:17]} 31. Rxc8+ {[%clk 0:00:35]}  Nxc8 {[%clk 0:01:18]} 32. Bc5 {[%clk 0:00:33]}  b6 {[%clk 0:01:14]} 33. Bd4 {[%clk 0:00:33]}  Be6 {[%clk 0:01:07]} 34. Kf1 {[%clk 0:00:29]}  Nd6 {[%clk 0:00:58]} 35. Bxb6 {[%clk 0:00:27]}  Bd7 {[%clk 0:00:58]} 36. Bc5 {[%clk 0:00:17]}  Nxb5 {[%clk 0:00:58]} 37. Ke1 {[%clk 0:00:17]}  Nc3 {[%clk 0:00:41]} 38. Bf3 {[%clk 0:00:17]}  f5 {[%clk 0:00:38]} 39. gxf5 {[%clk 0:00:15]}  gxf5 {[%clk 0:00:39]} 40. Bb4 {[%clk 0:00:09]}  Ne4 {[%clk 0:00:39]} 41. Be2 {[%clk 0:00:08]}  Kf7 {[%clk 0:00:37]} 42. Bc4+ {[%clk 0:00:08]}  Be6 {[%clk 0:00:37]} 43. Bb5 {[%clk 0:00:08]}  Bb3 {[%clk 0:00:35]} 44. f3 {[%clk 0:00:09]}  Nf6 {[%clk 0:00:35]} 45. Kd2 {[%clk 0:00:08]}  Nd5 {[%clk 0:00:33]} 46. Bc5 {[%clk 0:00:08]}  Ke6 {[%clk 0:00:31]} 47. Kd3 {[%clk 0:00:07]}  Ke5 {[%clk 0:00:23]} 48. Bc4 {[%clk 0:00:06]}  Bd1 {[%clk 0:00:18]} 49. Bd4+ {[%clk 0:00:06]}  Kd6 {[%clk 0:00:17]} 50. f4 {[%clk 0:00:05]}  Bf3 {[%clk 0:00:17]} 51. Be5+ {[%clk 0:00:05]}  Kc5 {[%clk 0:00:16]} 52. Bd4+ {[%clk 0:00:05]}  Kc6 {[%clk 0:00:16]} 53. h4 {[%clk 0:00:02]}  Be4+ {[%clk 0:00:16]} 54. Kd2 {[%clk 0:00:02]}  Kd6 {[%clk 0:00:11]} 55. Bd3 {[%clk 0:00:02]}  Ke6 {[%clk 0:00:09]} 56. Bb5 {[%clk 0:00:02]}  Nc7 {[%clk 0:00:08]} 57. Bxa4 {[%clk 0:00:02]}  Kd6 {[%clk 0:00:06]} 58. Bc2 {[%clk 0:00:03]}  Kd5 {[%clk 0:00:04]} 59. Bxe4+ {[%clk 0:00:03]}  Kxe4 {[%clk 0:00:05]} 60. a4 {[%clk 0:00:03]}  Na6 {[%clk 0:00:04]} 61. a5 {[%clk 0:00:03]}  Kf3 {[%clk 0:00:03]} 62. Kc3 {[%clk 0:00:04]}  Kg4 {[%clk 0:00:04]} 63. Kc4 {[%clk 0:00:04]}  Kxh4 {[%clk 0:00:04]} 64. Kb5 {[%clk 0:00:05]}  Nc7+ {[%clk 0:00:05]} 65. Kb6 {[%clk 0:00:04]}  Ne6 {[%clk 0:00:02]} 66. a6 {[%clk 0:00:04]}  Nxd4 {[%clk 0:00:01]} 67. exd4 {[%clk 0:00:05]}  Kg3 {[%clk 0:00:02]} 68. a7 {[%clk 0:00:06]}  Kxf4 {[%clk 0:00:02]} 69. a8=Q {[%clk 0:00:06]}  Kg3 {[%clk 0:00:03]} 70. Qh1 {[%clk 0:00:07]}  f4 {[%clk 0:00:04]} 71. Qxh7 {[%clk 0:00:07]}  f3 {[%clk 0:00:04]} 72. Qf5 {[%clk 0:00:08]}  f2 {[%clk 0:00:04]} 73. d5 {[%clk 0:00:08]}  Kg2 {[%clk 0:00:04]} 74. Qxf2+ {[%clk 0:00:09]}  Kh1 {[%clk 0:00:04]} 75. d6 {[%clk 0:00:10]} 1/2-1/2


[Site "https://www.chess.com"]

[Event "Titled Tuesday Blitz July 18 Early 2023"]
[White "Garakov, Mikhael"]
[Black "Komov, Roman"]
[WhiteFideId "4169034"]
[BlackFideId "24175714"]
[WhiteElo "2522"]
[BlackElo "2643"]
[Result "1-0"]
[Round "6"]
[TimeControl "180+2"]
[Date "2023.07.18"]
[WhiteClock "0:00:45"]
[BlackClock "0:00:10"]
[Board "72"]

1. e4 {[%clk 0:03:00]}  c5 {[%clk 0:02:59]} 2. Nf3 {[%clk 0:03:00]}  d6 {[%clk 0:03:00]} 3. d4 {[%clk 0:03:00]}  cxd4 {[%clk 0:03:01]} 4. Nxd4 {[%clk 0:03:01]}  Nf6 {[%clk 0:03:01]} 5. Nc3 {[%clk 0:03:01]}  Nc6 {[%clk 0:03:02]} 6. Bc4 {[%clk 0:03:01]}  Qb6 {[%clk 0:03:01]} 7. Nb3 {[%clk 0:02:56]}  e6 {[%clk 0:03:01]} 8. Be3 {[%clk 0:02:55]}  Qc7 {[%clk 0:03:01]} 9. Be2 {[%clk 0:02:55]}  Be7 {[%clk 0:03:01]} 10. O-O {[%clk 0:02:53]}  a6 {[%clk 0:03:01]} 11. f4 {[%clk 0:02:50]}  b5 {[%clk 0:02:59]} 12. a3 {[%clk 0:02:50]}  Bb7 {[%clk 0:02:59]} 13. Bf3 {[%clk 0:02:42]}  O-O {[%clk 0:02:58]} 14. Qe2 {[%clk 0:02:39]}  Rac8 {[%clk 0:02:42]} 15. g4 {[%clk 0:02:36]}  Nd7 {[%clk 0:02:42]} 16. Rad1 {[%clk 0:02:09]}  Nc5 {[%clk 0:02:42]} 17. g5 {[%clk 0:01:51]}  Nxb3 {[%clk 0:02:24]} 18. cxb3 {[%clk 0:01:51]}  Rfe8 {[%clk 0:02:19]} 19. Qf2 {[%clk 0:01:43]}  Bf8 {[%clk 0:02:16]} 20. h4 {[%clk 0:01:43]}  b4 {[%clk 0:02:08]} 21. Bb6 {[%clk 0:01:41]}  Qb8 {[%clk 0:02:05]} 22. axb4 {[%clk 0:01:40]}  Nxb4 {[%clk 0:02:06]} 23. h5 {[%clk 0:01:37]}  d5 {[%clk 0:01:44]} 24. e5 {[%clk 0:01:33]}  d4 {[%clk 0:01:44]} 25. Bxd4 {[%clk 0:01:26]}  Bxf3 {[%clk 0:01:41]} 26. Qxf3 {[%clk 0:01:26]}  Red8 {[%clk 0:01:39]} 27. Be3 {[%clk 0:01:19]}  Rxd1 {[%clk 0:01:27]} 28. Rxd1 {[%clk 0:01:18]}  Nc2 {[%clk 0:01:27]} 29. Bf2 {[%clk 0:01:09]}  Qxb3 {[%clk 0:01:26]} 30. g6 {[%clk 0:01:07]}  fxg6 {[%clk 0:01:14]} 31. hxg6 {[%clk 0:01:07]}  hxg6 {[%clk 0:01:15]} 32. Qg4 {[%clk 0:01:04]}  Nb4 {[%clk 0:01:01]} 33. Rd7 {[%clk 0:00:51]}  Nc6 {[%clk 0:00:19]} 34. Ne4 {[%clk 0:00:47]}  Qc4 {[%clk 0:00:10]} 35. Nf6+ {[%clk 0:00:45]} 1-0


[Site "https://www.chess.com"]

[Event "Titled Tuesday Blitz July 18 Early 2023"]
[White "Mathieu, Phileas"]
[Black "Suleymanli, Suleyman"]
[WhiteFideId "36048410"]
[BlackFideId "13416375"]
[WhiteElo "2514"]
[BlackElo "2628"]
[Result "0-1"]
[Round "6"]
[TimeControl "180+2"]
[Date "2023.07.18"]
[WhiteClock "0:00:02"]
[BlackClock "0:00:06"]
[Board "76"]

1. e4 {[%clk 0:03:00]}  c5 {[%clk 0:02:56]} 2. Nc3 {[%clk 0:02:58]}  g6 {[%clk 0:02:56]} 3. d4 {[%clk 0:02:55]}  Bg7 {[%clk 0:02:55]} 4. dxc5 {[%clk 0:02:54]}  Qa5 {[%clk 0:02:54]} 5. Qd3 {[%clk 0:02:44]}  Nc6 {[%clk 0:02:53]} 6. Be3 {[%clk 0:02:40]}  Nf6 {[%clk 0:02:48]} 7. Ne2 {[%clk 0:02:29]}  O-O {[%clk 0:02:44]} 8. f3 {[%clk 0:02:25]}  b6 {[%clk 0:02:42]} 9. cxb6 {[%clk 0:02:23]}  Ba6 {[%clk 0:02:42]} 10. Qd2 {[%clk 0:02:20]}  axb6 {[%clk 0:02:43]} 11. Nd4 {[%clk 0:02:19]}  Ne5 {[%clk 0:02:38]} 12. Bxa6 {[%clk 0:02:07]}  Qxa6 {[%clk 0:02:35]} 13. Qe2 {[%clk 0:02:03]}  Nc4 {[%clk 0:02:35]} 14. b3 {[%clk 0:01:54]}  Qa5 {[%clk 0:02:24]} 15. Qxc4 {[%clk 0:01:36]}  Rfc8 {[%clk 0:02:24]} 16. b4 {[%clk 0:01:33]}  Qa3 {[%clk 0:02:08]} 17. Qb3 {[%clk 0:01:29]}  Rxc3 {[%clk 0:02:07]} 18. Qxa3 {[%clk 0:01:29]}  Rcxa3 {[%clk 0:02:06]} 19. Ke2 {[%clk 0:01:18]}  Rxa2 {[%clk 0:01:59]} 20. Rxa2 {[%clk 0:01:19]}  Rxa2 {[%clk 0:02:00]} 21. Kd3 {[%clk 0:01:17]}  d5 {[%clk 0:01:59]} 22. e5 {[%clk 0:01:13]}  Nd7 {[%clk 0:02:00]} 23. f4 {[%clk 0:01:12]}  e6 {[%clk 0:01:57]} 24. Nb3 {[%clk 0:01:10]}  f6 {[%clk 0:01:56]} 25. exf6 {[%clk 0:01:09]}  Bxf6 {[%clk 0:01:57]} 26. Bd4 {[%clk 0:01:09]}  Bxd4 {[%clk 0:01:57]} 27. Nxd4 {[%clk 0:01:10]}  e5 {[%clk 0:01:57]} 28. fxe5 {[%clk 0:01:02]}  Nxe5+ {[%clk 0:01:58]} 29. Kc3 {[%clk 0:00:59]}  Ra3+ {[%clk 0:01:58]} 30. Nb3 {[%clk 0:00:58]}  Nc6 {[%clk 0:01:52]} 31. Rd1 {[%clk 0:00:47]}  Ra2 {[%clk 0:01:44]} 32. b5 {[%clk 0:00:42]}  Ne7 {[%clk 0:01:42]} 33. Re1 {[%clk 0:00:34]}  Kf7 {[%clk 0:01:40]} 34. Rf1+ {[%clk 0:00:35]}  Ke8 {[%clk 0:01:36]} 35. Nd4 {[%clk 0:00:35]}  Ra3+ {[%clk 0:01:31]} 36. Kd2 {[%clk 0:00:35]}  Ra4 {[%clk 0:01:31]} 37. Kd3 {[%clk 0:00:33]}  Ra3+ {[%clk 0:01:30]} 38. Kd2 {[%clk 0:00:34]}  Ra4 {[%clk 0:01:24]} 39. Kd3 {[%clk 0:00:33]}  Ra3+ {[%clk 0:01:11]} 40. Nb3 {[%clk 0:00:31]}  Nf5 {[%clk 0:01:08]} 41. g4 {[%clk 0:00:29]}  Nd6 {[%clk 0:01:08]} 42. Kd4 {[%clk 0:00:27]}  Ra4+ {[%clk 0:01:06]} 43. Kxd5 {[%clk 0:00:28]}  Nxb5 {[%clk 0:01:07]} 44. h3 {[%clk 0:00:19]}  Nc3+ {[%clk 0:01:02]} 45. Kc6 {[%clk 0:00:18]}  Rc4+ {[%clk 0:01:03]} 46. Kxb6 {[%clk 0:00:18]}  Nd5+ {[%clk 0:01:03]} 47. Kb5 {[%clk 0:00:18]}  Rxc2 {[%clk 0:01:04]} 48. Nd4 {[%clk 0:00:18]}  Rc3 {[%clk 0:01:02]} 49. Rh1 {[%clk 0:00:15]}  Kd7 {[%clk 0:00:59]} 50. h4 {[%clk 0:00:14]}  Kd6 {[%clk 0:01:00]} 51. h5 {[%clk 0:00:14]}  Rc5+ {[%clk 0:01:00]} 52. Ka6 {[%clk 0:00:13]}  Rc4 {[%clk 0:00:55]} 53. hxg6 {[%clk 0:00:11]}  hxg6 {[%clk 0:00:56]} 54. Nf5+ {[%clk 0:00:08]}  Kc6 {[%clk 0:00:48]} 55. Ka5 {[%clk 0:00:06]}  Rxg4 {[%clk 0:00:32]} 56. Nh6 {[%clk 0:00:04]}  Rf4 {[%clk 0:00:29]} 57. Rc1+ {[%clk 0:00:05]}  Kd6 {[%clk 0:00:27]} 58. Rg1 {[%clk 0:00:05]}  Ne7 {[%clk 0:00:22]} 59. Ng8 {[%clk 0:00:06]}  Nxg8 {[%clk 0:00:17]} 60. Rxg6+ {[%clk 0:00:06]}  Nf6 {[%clk 0:00:18]} 61. Kb5 {[%clk 0:00:05]}  Ke5 {[%clk 0:00:17]} 62. Rh6 {[%clk 0:00:05]}  Nd5 {[%clk 0:00:15]} 63. Rh5+ {[%clk 0:00:05]}  Kd4 {[%clk 0:00:15]} 64. Kc6 {[%clk 0:00:04]}  Rf6+ {[%clk 0:00:15]} 65. Kb5 {[%clk 0:00:04]}  Rb6+ {[%clk 0:00:16]} 66. Ka5 {[%clk 0:00:05]}  Rb1 {[%clk 0:00:17]} 67. Rh8 {[%clk 0:00:04]}  Nc7 {[%clk 0:00:13]} 68. Rc8 {[%clk 0:00:04]}  Ne6 {[%clk 0:00:10]} 69. Re8 {[%clk 0:00:03]}  Nc5 {[%clk 0:00:09]} 70. Rh8 {[%clk 0:00:03]}  Nd7 {[%clk 0:00:08]} 71. Rh4+ {[%clk 0:00:04]}  Kc5 {[%clk 0:00:08]} 72. Rh5+ {[%clk 0:00:04]}  Kd6 {[%clk 0:00:08]} 73. Rh6+ {[%clk 0:00:04]}  Kd5 {[%clk 0:00:09]} 74. Rh5+ {[%clk 0:00:05]}  Ne5 {[%clk 0:00:09]} 75. Ka4 {[%clk 0:00:05]}  Kc4 {[%clk 0:00:09]} 76. Ka5 {[%clk 0:00:04]}  Nc6+ {[%clk 0:00:08]} 77. Ka6 {[%clk 0:00:05]}  Nd4 {[%clk 0:00:08]} 78. Ka7 {[%clk 0:00:04]}  Ne6 {[%clk 0:00:07]} 79. Ka6 {[%clk 0:00:03]}  Nc7+ {[%clk 0:00:07]} 80. Ka7 {[%clk 0:00:04]}  Nd5 {[%clk 0:00:08]} 81. Ka6 {[%clk 0:00:04]}  Kc5 {[%clk 0:00:09]} 82. Ka7 {[%clk 0:00:04]}  Kc6 {[%clk 0:00:09]} 83. Rh6+ {[%clk 0:00:05]}  Kc5 {[%clk 0:00:10]} 84. Rh5 {[%clk 0:00:05]}  Rb2 {[%clk 0:00:05]} 85. Ka6 {[%clk 0:00:05]}  Rb6+ {[%clk 0:00:05]} 86. Ka7 {[%clk 0:00:05]}  Rg6 {[%clk 0:00:05]} 87. Rf5 {[%clk 0:00:05]}  Rg7+ {[%clk 0:00:06]} 88. Ka6 {[%clk 0:00:05]}  Kc6 {[%clk 0:00:05]} 89. Rh5 {[%clk 0:00:03]}  Rg6 {[%clk 0:00:05]} 90. Ka5 {[%clk 0:00:03]}  Kc5 {[%clk 0:00:05]} 91. Ka4 {[%clk 0:00:04]}  Rg3 {[%clk 0:00:05]} 92. Rh8 {[%clk 0:00:03]}  Nb6+ {[%clk 0:00:05]} 93. Ka5 {[%clk 0:00:02]}  Ra3# {[%clk 0:00:06]} 0-1


[Site "https://www.chess.com"]

[Event "Titled Tuesday Blitz July 18 Early 2023"]
[White "Fiorito, Francisco"]
[Black "Tomaszewski, Kacper"]
[WhiteFideId "180165"]
[BlackFideId "1127373"]
[WhiteElo "2608"]
[BlackElo "2484"]
[Result "0-1"]
[Round "6"]
[TimeControl "180+2"]
[Date "2023.07.18"]
[WhiteClock "0:00:03"]
[BlackClock "0:01:03"]
[Board "78"]

1. d4 {[%clk 0:03:00]}  Nf6 {[%clk 0:02:59]} 2. Nc3 {[%clk 0:03:01]}  d6 {[%clk 0:02:49]} 3. e4 {[%clk 0:03:00]}  e5 {[%clk 0:02:50]} 4. dxe5 {[%clk 0:02:59]}  dxe5 {[%clk 0:02:50]} 5. Qxd8+ {[%clk 0:03:00]}  Kxd8 {[%clk 0:02:51]} 6. Bc4 {[%clk 0:03:01]}  Be6 {[%clk 0:02:51]} 7. Bxe6 {[%clk 0:02:59]}  fxe6 {[%clk 0:02:52]} 8. f3 {[%clk 0:02:59]}  Nbd7 {[%clk 0:02:49]} 9. Be3 {[%clk 0:02:59]}  Bd6 {[%clk 0:02:48]} 10. O-O-O {[%clk 0:02:59]}  Ke7 {[%clk 0:02:49]} 11. Nh3 {[%clk 0:02:57]}  Rhb8 {[%clk 0:02:48]} 12. a4 {[%clk 0:02:50]}  a6 {[%clk 0:02:47]} 13. Nf2 {[%clk 0:02:40]}  b5 {[%clk 0:02:47]} 14. Nd3 {[%clk 0:02:39]}  c5 {[%clk 0:02:41]} 15. Rd2 {[%clk 0:01:53]}  c4 {[%clk 0:02:39]} 16. Nf2 {[%clk 0:01:52]}  Bb4 {[%clk 0:02:39]} 17. axb5 {[%clk 0:01:42]}  axb5 {[%clk 0:02:38]} 18. Kd1 {[%clk 0:01:42]}  Bxc3 {[%clk 0:02:19]} 19. bxc3 {[%clk 0:01:42]}  Ra3 {[%clk 0:02:18]} 20. Ke2 {[%clk 0:01:26]}  Rxc3 {[%clk 0:02:14]} 21. Ra1 {[%clk 0:01:26]}  b4 {[%clk 0:02:14]} 22. Ra7 {[%clk 0:01:16]}  Ke8 {[%clk 0:02:10]} 23. Ra6 {[%clk 0:01:05]}  b3 {[%clk 0:01:59]} 24. cxb3 {[%clk 0:01:02]}  cxb3 {[%clk 0:01:58]} 25. Nd1 {[%clk 0:01:02]}  Rc2 {[%clk 0:01:35]} 26. Nb2 {[%clk 0:00:59]}  Rxd2+ {[%clk 0:01:26]} 27. Kxd2 {[%clk 0:00:56]}  Rc8 {[%clk 0:01:26]} 28. Kd3 {[%clk 0:00:33]}  Rc2 {[%clk 0:01:16]} 29. Nc4 {[%clk 0:00:32]}  Rxc4 {[%clk 0:01:05]} 30. Kxc4 {[%clk 0:00:28]}  b2 {[%clk 0:01:05]} 31. Rxe6+ {[%clk 0:00:11]}  Kf7 {[%clk 0:01:05]} 32. Rxf6+ {[%clk 0:00:03]}  gxf6 {[%clk 0:01:03]} 0-1


[Site "https://www.chess.com"]